fUST/lending_fUST_20250911
["ID","MTS","AMOUNT","RATE_DAILY","PERIOD"]
[384771574,1757530868106,-411.877125,0.00013795,2]
[384771575,1757530868120,-68.122875,0.00013795,2]
[384771576,1757530868129,-431.877125,0.0001397,2]
[384771577,1757530868150,-500.0,0.0001397,2]
[384771578,1757530868164,-500.0,0.0001397,2]
[384771579,1757530868177,-532.04750877,0.0001397,2]
[384771580,1757530868191,-500.0,0.0001397,2]
[384771581,1757530868206,-4935.91498246,0.0001397,2]
[384771582,1757530868224,-500.0,0.0001397,2]
[384771583,1757530868238,-425.02748301,0.0001397,2]
[384771584,1757530868252,-8149.95503398,0.0001397,2]
[384771585,1757530868269,-10000.01,0.0001397,2]
[384771586,1757530868287,-10000.01,0.0001397,2]
[384771587,1757530868498,300.0,0.00013655,2]
[384771588,1757530880509,372.82,0.00012329,2]
[384771589,1757530880740,-480.0,0.00013792,2]
[384771590,1757530880769,-480.0,0.00013793,2]
[384771591,1757530880798,-460.0,0.00013793,2]
[384771592,1757530880826,-480.0,0.00013794,2]
[384771593,1757530880854,-480.0,0.00013794,2]
[384771594,1757530880881,-480.0,0.00013794,2]
[384771595,1757530880909,-480.0,0.00013794,2]
[384771596,1757530880938,-480.0,0.00013794,2]
[384771597,1757530880966,-480.0,0.00013794,2]
[384771598,1757530880994,-425.35819495,0.00013794,2]
[384771599,1757530881022,-69.2936101,0.00013795,2]
[384771600,1757530881117,-410.7063899,0.00013795,2]
[384771601,1757530881145,-480.0,0.00013795,2]
[384771602,1757530881173,-480.0,0.00013795,2]
[384771603,1757530881201,-480.0,0.00013795,2]
[384771604,1757530881228,-480.0,0.00013795,2]
[384771605,1757530881257,-500.0,0.00013969,2]
[384771606,1757530881284,-443.85087166,0.00013969,2]
[384771607,1757530881313,-500.0,0.00013969,2]
[384771608,1757530881342,-500.0,0.00013969,2]
[384771609,1757530881371,-500.0,0.00013969,2]
[384771610,1757530881493,-500.0,0.00013969,2]
[384771611,1757530881523,-629.13420993,0.00013969,2]
[384771612,1757530881553,-500.0,0.00013969,2]
[384771613,1757530881584,-500.0,0.00013969,2]
[384771614,1757530881614,-500.0,0.00013969,2]
[384771615,1757530881643,-500.0,0.00013969,2]
[384771616,1757530881672,-500.0,0.00013969,2]
[384771617,1757530881701,-500.0,0.00013969,2]
[384771618,1757530881729,-500.0,0.00013969,2]
[384771619,1757530881758,-241.74158014,0.00013969,2]
[384771620,1757530881854,-480.0,0.00013794,2]
[384771621,1757530881885,-258.25841986,0.00013969,2]
[384771622,1757530881915,-500.0,0.00013969,2]
[384771623,1757530881944,-500.0,0.00013969,2]
[384771624,1757530881972,-500.0,0.00013969,2]
[384771625,1757530882001,-500.0,0.00013969,2]
[384771626,1757530882030,-500.0,0.00013969,2]
[384771627,1757530882060,-500.0,0.00013969,2]
[384771628,1757530882090,-500.0,0.00013969,2]
[384771629,1757530882228,-500.0,0.00013969,2]
[384771630,1757530882258,-23.49316028,0.00013969,2]
[384771631,1757530882404,-476.50683972,0.00013969,2]
[384771632,1757530882435,-161.50188109,0.00013969,2]
[384771633,1757530882463,-500.0,0.00013969,2]
[384771634,1757530882494,-500.0,0.00013969,2]
[384771635,1757530882522,-500.0,0.00013969,2]
[384771636,1757530882553,-500.0,0.00013969,2]
[384771637,1757530882582,-500.0,0.00013969,2]
[384771638,1757530882611,-500.0,0.00013969,2]
[384771639,1757530882640,-500.0,0.00013969,2]
[384771640,1757530882667,-500.0,0.00013969,2]
[384771641,1757530882695,-223.99255838,0.00013969,2]
[384771642,1757530882817,-276.00744162,0.00013969,2]
[384771643,1757530882844,-500.0,0.00013969,2]
[384771644,1757530882871,-287.41611107,0.00013969,2]
[384771645,1757530882900,-500.0,0.00013969,2]
[384771646,1757530882928,-500.0,0.00013969,2]
[384771647,1757530882957,-499.99999999,0.00013969,2]
[384771648,1757530883578,-188.96480977,0.00013795,2]
[384771649,1757530883592,-287.41611107,0.00013795,2]
[384771650,1757530883606,-3.61907916,0.00013795,2]
[384771651,1757530883615,-496.38092084,0.00013969,2]
[384771652,1757530883629,-500.0,0.00013969,2]
[384771653,1757530883642,-499.99999999,0.00013969,2]
[384771654,1757530883655,-4873.16289464,0.00013969,2]
[384771655,1757530883672,-10000.01,0.00013969,2]
[384771656,1757530883686,-7845.31610143,0.00013969,2]
[384771657,1757530883695,-2154.69389857,0.0001397,2]
[384771658,1757530883709,-10000.01,0.0001397,2]
[384771659,1757530883722,-10000.01,0.0001397,2]
[384771660,1757530889776,480.0,0.00013655,2]
[384771661,1757530891095,310.68,0.00012329,2]
[384771662,1757530893970,38733.67265108,0.00013694,2]
[384771663,1757530901876,258.9,0.00012329,2]
[384771664,1757530910716,-480.0,0.00013518,2]
[384771665,1757530910749,-480.0,0.00013655,2]
[384771666,1757530912317,215.75,0.00012329,2]
[384771667,1757530914716,7864.26,0.00013557,2]
[384771668,1757530914739,10000.01,0.00013557,2]
[384771669,1757530914764,3325.53361896,0.00013557,2]
[384771670,1757530922654,300.0,0.00013693,2]
[384771671,1757530922779,6374.47638104,0.00013557,2]
[384771672,1757530922802,767.02240411,0.00013557,2]
[384771673,1757530923408,179.79,0.00012329,2]
[384771674,1757530930580,4545.49602596,0.00013557,2]
[384771675,1757530932322,1200.0,0.00013693,2]
[384771676,1757530934395,899.0,0.00012329,2]
[384771677,1757530952283,500.0,0.00013693,2]
[384771678,1757530952314,500.0,0.00013693,2]
[384771679,1757530952342,617.61449283,0.00013693,2]
[384771680,1757530952369,500.0,0.00013693,2]
[384771681,1757530952404,271.03853755,0.00013693,2]
[384771682,1757530952431,20.04853955,0.00013693,2]
[384771683,1757530952452,479.95146045,0.00013693,2]
[384771684,1757530952481,500.0,0.00013693,2]
[384771685,1757530952522,467.52047112,0.00013693,2]
[384771686,1757530952550,500.0,0.00013693,2]
[384771687,1757530952580,500.0,0.00013693,2]
[384771688,1757530952615,500.0,0.00013693,2]
[384771689,1757530952644,500.0,0.00013693,2]
[384771690,1757530952673,500.0,0.00013693,2]
[384771691,1757530952702,500.0,0.00013693,2]
[384771692,1757530972448,500.0,0.00013693,2]
[384771693,1757530982783,300.0,0.00013693,2]
[384771694,1757530985780,500.0,0.00013693,2]
[384771695,1757530985828,500.0,0.00013693,2]
[384771696,1757530986089,521.08139192,0.00013693,2]
[384771697,1757530997353,314.98388407,0.00013692,2]
[384771698,1757531002623,500.0,0.00013693,2]
[384771699,1757531002652,500.0,0.00013693,2]
[384771700,1757531002680,500.0,0.00013693,2]
[384771701,1757531002710,500.0,0.00013693,2]
[384771702,1757531002742,500.0,0.00013693,2]
[384771703,1757531002770,416.47279244,0.00013693,2]
[384771704,1757531002794,83.52720756,0.00013693,2]
[384771705,1757531002821,500.0,0.00013693,2]
[384771706,1757531002849,500.0,0.00013693,2]
[384771707,1757531002879,500.0,0.00013693,2]
[384771708,1757531002908,500.0,0.00013693,2]
[384771709,1757531002939,500.0,0.00013693,2]
[384771710,1757531002973,500.0,0.00013693,2]
[384771711,1757531003002,500.0,0.00013693,2]
[384771712,1757531003032,500.0,0.00013693,2]
[384771713,1757531003061,500.0,0.00013693,2]
[384771714,1757531003091,500.0,0.00013693,2]
[384771715,1757531003120,500.0,0.00013693,2]
[384771716,1757531003148,500.0,0.00013693,2]
[384771717,1757531003185,500.0,0.00013693,2]
[384771718,1757531003214,500.0,0.00013693,2]
[384771719,1757531003246,500.0,0.00013693,2]
[384771720,1757531003304,500.0,0.00013693,2]
[384771721,1757531003336,500.0,0.00013693,2]
[384771722,1757531003366,500.0,0.00013693,2]
[384771723,1757531003394,500.0,0.00013693,2]
[384771724,1757531003423,416.48279244,0.00013693,2]
[384771725,1757531003446,83.51720756,0.00013693,2]
[384771726,1757531003476,500.0,0.00013693,2]
[384771727,1757531003506,500.0,0.00013693,2]
[384771728,1757531003553,558.03497486,0.00013693,2]
[384771729,1757531003604,500.0,0.00013693,2]
[384771730,1757531003631,500.0,0.00013693,2]
[384771731,1757531003677,500.0,0.00013693,2]
[384771732,1757531003737,500.0,0.00013693,2]
[384771733,1757531003810,500.0,0.00013693,2]
[384771734,1757531024807,204.08087185,0.00013693,2]
[384771735,1757531028426,500.0,0.00013693,2]
[384771736,1757531028456,500.0,0.00013693,2]
[384771737,1757531028486,500.0,0.00013693,2]
[384771738,1757531028515,500.0,0.00013693,2]
[384771739,1757531028548,214.66888702,0.00013693,2]
[384771740,1757531028579,500.0,0.00013693,2]
[384771741,1757531028610,500.0,0.00013693,2]
[384771742,1757531028750,500.0,0.00013693,2]
[384771743,1757531028780,500.0,0.00013693,2]
[384771744,1757531028814,500.0,0.00013693,2]
[384771745,1757531028844,500.0,0.00013693,2]
[384771746,1757531034506,439.70805871,0.00013693,2]
[384771747,1757531034530,60.29194129,0.00013693,2]
[384771748,1757531034558,500.0,0.00013693,2]
[384771749,1757531034586,500.0,0.00013693,2]
[384771750,1757531034616,500.0,0.00013693,2]
[384771751,1757531034649,500.0,0.00013693,2]
[384771752,1757531034677,500.0,0.00013693,2]
[384771753,1757531034705,500.0,0.00013693,2]
[384771754,1757531034732,500.0,0.00013693,2]
[384771755,1757531034761,500.0,0.00013693,2]
[384771756,1757531034789,500.0,0.00013693,2]
[384771757,1757531034817,500.0,0.00013693,2]
[384771758,1757531034846,500.0,0.00013693,2]
[384771759,1757531034883,500.0,0.00013693,2]
[384771760,1757531034927,500.0,0.00013693,2]
[384771761,1757531034966,360.87452354,0.00013693,2]
[384771762,1757531043404,300.0,0.00013693,2]
[384771763,1757531043483,500.0,0.00013693,2]
[384771764,1757531043539,500.0,0.00013693,2]
[384771765,1757531043596,500.0,0.00013693,2]
[384771766,1757531043648,500.0,0.00013693,2]
[384771767,1757531043703,168.69549926,0.00013693,2]
[384771768,1757531048859,500.0,0.00013693,2]
[384771769,1757531048890,110.14803591,0.00013693,2]
[384771770,1757531048911,389.85196409,0.00013693,2]
[384771771,1757531048942,500.0,0.00013693,2]
[384771772,1757531048970,632.89340315,0.00013693,2]
[384771773,1757531048999,500.0,0.00013693,2]
[384771774,1757531049028,500.0,0.00013693,2]
[384771775,1757531049056,500.0,0.00013693,2]
[384771776,1757531049086,500.0,0.00013693,2]
[384771777,1757531049118,500.0,0.00013693,2]
[384771778,1757531049147,500.0,0.00013693,2]
[384771779,1757531049176,500.0,0.00013693,2]
[384771780,1757531049209,500.0,0.00013693,2]
[384771781,1757531049238,500.0,0.00013693,2]
[384771782,1757531049266,500.0,0.00013693,2]
[384771783,1757531049294,500.0,0.00013693,2]
[384771784,1757531049324,500.0,0.00013693,2]
[384771785,1757531049352,500.0,0.00013693,2]
[384771786,1757531065717,500.0,0.00013693,2]
[384771787,1757531065745,500.0,0.00013693,2]
[384771788,1757531065772,500.0,0.00013693,2]
[384771789,1757531065838,157.45248774,0.00013693,2]
[384771790,1757531065896,319.81214502,0.00013693,2]
[384771791,1757531065918,180.18785498,0.00013693,2]
[384771792,1757531081687,182.02316846,0.00013693,2]
[384771793,1757531084484,500.0,0.00013693,2]
[384771794,1757531084539,500.0,0.00013693,2]
[384771795,1757531084590,500.0,0.00013693,2]
[384771796,1757531084650,179.57226995,0.00013693,2]
[384771797,1757531086022,500.0,0.00013693,2]
[384771798,1757531086055,500.0,0.00013693,2]
[384771799,1757531086088,500.0,0.00013693,2]
[384771800,1757531086123,500.0,0.00013693,2]
[384771801,1757531086152,500.0,0.00013693,2]
[384771802,1757531086183,500.0,0.00013693,2]
[384771803,1757531086213,500.0,0.00013693,2]
[384771804,1757531086269,500.0,0.00013693,2]
[384771805,1757531086310,500.0,0.00013693,2]
[384771806,1757531086346,500.0,0.00013693,2]
[384771807,1757531086377,500.0,0.00013693,2]
[384771808,1757531086431,500.0,0.00013693,2]
[384771809,1757531086487,500.0,0.00013693,2]
[384771810,1757531086539,273.44057089,0.00013693,2]
[384771811,1757531102240,300.0,0.00013693,2]
[384771812,1757531102277,186.6191411,0.00013693,2]
[384771813,1757531103081,698.16699462,0.000136,2]
[384771814,1757531103104,7926.30722508,0.000136,2]
[384771815,1757531119457,658.58,0.00012329,2]
[384771816,1757531132686,230.42107714,0.00013283,2]
[384771817,1757531141172,304.99,0.00012329,2]
[384771818,1757531151674,502.51,0.00012329,2]
[384771819,1757531162196,377.20169778,0.00012329,2]
[384771820,1757531162219,151.36830222,0.00012329,2]
[384771821,1757531162399,300.0,0.00013693,2]
[384771822,1757531172942,190.45,0.00012329,2]
[384771823,1757531183650,178.77,0.00012329,2]
[384771824,1757531194294,186.24,0.00012329,2]
[384771829,1757531204468,500.0,0.00013693,2]
[384771831,1757531204766,155.2,0.00012329,2]
[384771835,1757531215296,189.29,0.00012329,2]
[384771836,1757531217600,275.61089857,0.00013594,2]
[384771837,1757531222571,300.0,0.00013693,2]
[384771838,1757531226094,269.93,0.00012329,2]
[384771839,1757531231790,169.95145636,0.00013594,2]
[384771840,1757531232415,359.0,0.00013693,2]
[384771841,1757531236587,224.94,0.00012329,2]
[384771843,1757531247085,390.78,0.00012329,2]
[384771844,1757531257544,325.65,0.00012329,2]
[384771845,1757531267961,389.28,0.00012329,2]
[384771846,1757531278583,324.4,0.00012329,2]
[384771847,1757531289602,382.52,0.00012329,2]
[384771848,1757531300047,447.76,0.00012329,2]
[384771849,1757531310628,447.27,0.00012329,2]
[384771850,1757531321055,430.72,0.00012329,2]
[384771851,1757531326536,500.0,0.00013693,2]
[384771852,1757531331494,358.94,0.00012329,2]
[384771853,1757531342142,448.69,0.00012329,2]
[384771854,1757531342254,300.0,0.00013693,2]
[384771855,1757531352755,373.91,0.00012329,2]
[384771861,1757531363462,311.59,0.00012329,2]
[384771862,1757531374107,259.66,0.00012329,2]
[384771863,1757531384562,216.38,0.00012329,2]
[384771864,1757531395545,180.32,0.00012329,2]
[384771865,1757531406205,150.27,0.00012329,2]
[384771866,1757531416705,311.11934285,0.00012329,2]
[384771867,1757531416729,440.23065715,0.00012329,2]
[384771902,1757531432040,-156050.53131269,0.00013694,2]
[384771982,1757531435315,241.15953624,0.00013594,2]
[384771992,1757531437900,-1181.34538107,0.00013694,2]
[384771996,1757531437980,-6951.8879394,0.00013694,2]
[384771997,1757531437989,-1304.9642848,0.00013694,2]
[384771998,1757531437999,-10143.33737146,0.00013694,2]
[384771999,1757531438009,-480.0,0.00013698,2]
[384772000,1757531438018,-494.88,0.00013698,2]
[384772001,1757531438027,-480.0,0.00013698,2]
[384772002,1757531438036,-480.0,0.00013698,2]
[384772003,1757531438045,-480.0,0.00013698,2]
[384772004,1757531438054,-480.0,0.00013698,2]
[384772005,1757531438064,-480.0,0.00013698,2]
[384772006,1757531438073,-480.0,0.00013698,2]
[384772007,1757531438082,-480.0,0.00013698,2]
[384772008,1757531438091,-482.6484155,0.00013698,2]
[384772009,1757531438101,-480.0,0.00013698,2]
[384772010,1757531438110,-480.0,0.00013698,2]
[384772011,1757531438120,-480.0,0.00013698,2]
[384772012,1757531438129,-480.0,0.00013698,2]
[384772013,1757531438138,-439.74863909,0.00013698,2]
[384772014,1757531438147,-480.0,0.00013698,2]
[384772015,1757531438157,-480.0,0.00013698,2]
[384772016,1757531438167,-288.82,0.00013698,2]
[384772017,1757531438177,-480.0,0.00013698,2]
[384772018,1757531438186,-460.0,0.00013698,2]
[384772019,1757531438195,-480.0,0.00013698,2]
[384772020,1757531438205,-50000.0,0.00013698,2]
[384772021,1757531438214,-501.06957447,0.00013773,2]
[384772022,1757531438223,-500.0,0.00013773,2]
[384772023,1757531438233,-500.0,0.00013773,2]
[384772024,1757531438242,-500.0,0.00013773,2]
[384772025,1757531438252,-370.6127296,0.00013773,2]
[384772026,1757531438262,-500.0,0.00013773,2]
[384772027,1757531438271,-495.06035196,0.00013773,2]
[384772028,1757531438280,-500.0,0.00013773,2]
[384772029,1757531438290,-500.0,0.00013773,2]
[384772030,1757531438299,-500.0,0.00013773,2]
[384772031,1757531438308,-480.0,0.00013792,2]
[384772032,1757531438318,-480.0,0.00013792,2]
[384772033,1757531438327,-480.0,0.00013792,2]
[384772034,1757531438337,-480.0,0.00013792,2]
[384772035,1757531438347,-480.0,0.00013792,2]
[384772036,1757531438356,-480.0,0.00013792,2]
[384772037,1757531438365,-483.10462769,0.00013792,2]
[384772038,1757531438374,-480.0,0.00013792,2]
[384772039,1757531438385,-480.0,0.00013792,2]
[384772040,1757531438395,-480.0,0.00013792,2]
[384772041,1757531438404,-480.0,0.00013792,2]
[384772042,1757531438415,-480.0,0.00013792,2]
[384772043,1757531438426,-480.0,0.00013792,2]
[384772044,1757531438436,-480.0,0.00013792,2]
[384772045,1757531438446,-480.0,0.00013792,2]
[384772046,1757531438455,-480.0,0.00013792,2]
[384772047,1757531438464,-480.0,0.00013792,2]
[384772048,1757531438474,-480.0,0.00013792,2]
[384772049,1757531438483,-480.0,0.00013792,2]
[384772050,1757531438493,-480.0,0.00013792,2]
[384772051,1757531438503,-480.0,0.00013792,2]
[384772052,1757531438513,-480.0,0.00013792,2]
[384772053,1757531438522,-480.0,0.00013792,2]
[384772054,1757531438532,-480.0,0.00013792,2]
[384772055,1757531438541,-500.82,0.00013792,2]
[384772056,1757531438550,-480.0,0.00013793,2]
[384772057,1757531438560,-480.0,0.00013793,2]
[384772058,1757531438569,-480.0,0.00013793,2]
[384772059,1757531438579,-480.0,0.00013793,2]
[384772060,1757531438589,-480.0,0.00013793,2]
[384772061,1757531438599,-480.0,0.00013793,2]
[384772062,1757531438608,-448.38481023,0.00013794,2]
[384772063,1757531438618,-480.0,0.00013794,2]
[384772064,1757531438632,-157.28677093,0.00013794,2]
[384772065,1757531438647,-322.71322907,0.00013794,2]
[384772066,1757531438656,-236.78825545,0.00013794,2]
[384772067,1757531438669,-243.21174455,0.00013794,2]
[384772068,1757531438679,-484.80567327,0.00013794,2]
[384772069,1757531438688,-480.0,0.00013794,2]
[384772070,1757531438697,-480.0,0.00013794,2]
[384772071,1757531438707,-480.0,0.00013794,2]
[384772072,1757531438716,-480.0,0.00013794,2]
[384772073,1757531438725,-480.0,0.00013794,2]
[384772074,1757531438734,-482.15021736,0.00013794,2]
[384772075,1757531438743,-480.0,0.00013794,2]
[384772076,1757531438753,-480.0,0.00013794,2]
[384772077,1757531438762,-482.85908735,0.00013794,2]
[384772078,1757531438899,-199.03224518,0.00013794,2]
[384772079,1757531438918,-284.67520584,0.00013794,2]
[384772080,1757531438928,-480.0,0.00013794,2]
[384772081,1757531438938,-480.0,0.00013794,2]
[384772082,1757531438948,-482.42793387,0.00013794,2]
[384772083,1757531438958,-480.0,0.00013794,2]
[384772084,1757531438967,-480.0,0.00013794,2]
[384772085,1757531438977,-480.0,0.00013794,2]
[384772086,1757531438986,-480.0,0.00013794,2]
[384772087,1757531438996,-480.0,0.00013794,2]
[384772088,1757531439005,-480.0,0.00013794,2]
[384772089,1757531439015,-480.0,0.00013794,2]
[384772090,1757531439024,-480.0,0.00013794,2]
[384772091,1757531439034,-480.0,0.00013794,2]
[384772092,1757531439043,-480.0,0.00013794,2]
[384772093,1757531439054,-480.0,0.00013794,2]
[384772094,1757531439064,-480.0,0.00013794,2]
[384772095,1757531439073,-480.0,0.00013794,2]
[384772096,1757531439085,-480.0,0.00013794,2]
[384772097,1757531439095,-480.0,0.00013794,2]
[384772098,1757531439104,-480.0,0.00013794,2]
[384772099,1757531439113,-415.95900355,0.00013794,2]
[384772100,1757531439123,-480.0,0.00013794,2]
[384772101,1757531439132,-480.0,0.00013794,2]
[384772102,1757531439142,-480.0,0.00013794,2]
[384772103,1757531439152,-480.0,0.00013794,2]
[384772104,1757531439162,-480.0,0.00013794,2]
[384772105,1757531439171,-334.70512636,0.00013794,2]
[384772106,1757531439180,-480.0,0.00013794,2]
[384772107,1757531439190,-480.0,0.00013794,2]
[384772108,1757531439199,-480.0,0.00013794,2]
[384772109,1757531439208,-480.0,0.00013794,2]
[384772110,1757531439218,-480.0,0.00013794,2]
[384772111,1757531439228,-480.0,0.00013794,2]
[384772112,1757531439237,-480.0,0.00013794,2]
[384772113,1757531439246,-480.0,0.00013794,2]
[384772114,1757531439255,-480.0,0.00013794,2]
[384772115,1757531439265,-480.0,0.00013794,2]
[384772116,1757531439274,-480.0,0.00013794,2]
[384772117,1757531439284,-480.0,0.00013794,2]
[384772118,1757531439293,-480.0,0.00013794,2]
[384772119,1757531439302,-480.0,0.00013794,2]
[384772120,1757531439311,-491.9372673,0.00013794,2]
[384772121,1757531439320,-480.0,0.00013794,2]
[384772122,1757531439329,-480.0,0.00013794,2]
[384772123,1757531439339,-480.0,0.00013794,2]
[384772124,1757531439348,-480.0,0.00013794,2]
[384772125,1757531439359,-480.0,0.00013794,2]
[384772126,1757531439369,-480.0,0.00013794,2]
[384772127,1757531439378,-480.0,0.00013794,2]
[384772128,1757531439387,-291.73635998,0.00013794,2]
[384772129,1757531439396,-480.0,0.00013794,2]
[384772130,1757531439406,-480.0,0.00013794,2]
[384772131,1757531439416,-342.49578923,0.00013794,2]
[384772132,1757531439425,-480.0,0.00013794,2]
[384772133,1757531439435,-480.0,0.00013794,2]
[384772134,1757531439445,-480.0,0.00013794,2]
[384772135,1757531439454,-480.0,0.00013794,2]
[384772136,1757531439463,-480.0,0.00013794,2]
[384772137,1757531439473,-480.0,0.00013794,2]
[384772138,1757531439483,-370.81453642,0.00013794,2]
[384772139,1757531439492,-480.0,0.00013794,2]
[384772140,1757531439501,-480.0,0.00013794,2]
[384772141,1757531439511,-480.0,0.00013794,2]
[384772142,1757531439520,-480.0,0.00013794,2]
[384772143,1757531439530,-480.0,0.00013794,2]
[384772144,1757531439540,-480.0,0.00013794,2]
[384772145,1757531439549,-480.0,0.00013794,2]
[384772146,1757531439559,-480.0,0.00013794,2]
[384772147,1757531439568,-480.0,0.00013794,2]
[384772148,1757531439578,-288.13,0.00013794,2]
[384772149,1757531439588,-480.0,0.00013794,2]
[384772150,1757531439598,-480.0,0.00013794,2]
[384772151,1757531439607,-480.0,0.00013794,2]
[384772152,1757531439616,-480.0,0.00013794,2]
[384772153,1757531439629,-446.39921191,0.00013794,2]
[384772154,1757531439638,-252.88786942,0.00013794,2]
[384772155,1757531439648,-481.92102351,0.00013794,2]
[384772156,1757531439657,-480.0,0.00013794,2]
[384772157,1757531439667,-531.25,0.00013794,2]
[384772158,1757531439677,-480.0,0.00013794,2]
[384772160,1757531439686,-480.0,0.00013794,2]
[384772161,1757531439695,-480.0,0.00013794,2]
[384772162,1757531439704,-480.0,0.00013794,2]
[384772163,1757531439713,-480.0,0.00013794,2]
[384772164,1757531439722,-480.0,0.00013794,2]
[384772165,1757531439732,-480.0,0.00013794,2]
[384772167,1757531439741,-480.0,0.00013794,2]
[384772169,1757531439750,-480.0,0.00013794,2]
[384772171,1757531439759,-480.0,0.00013794,2]
[384772173,1757531439769,-480.0,0.00013794,2]
[384772174,1757531439778,-480.0,0.00013794,2]
[384772175,1757531439787,-480.0,0.00013794,2]
[384772176,1757531439796,-480.0,0.00013794,2]
[384772177,1757531439805,-480.0,0.00013794,2]
[384772178,1757531439814,-307.0552187,0.00013794,2]
[384772179,1757531439823,-480.0,0.00013794,2]
[384772180,1757531439832,-480.0,0.00013794,2]
[384772181,1757531439842,-480.0,0.00013794,2]
[384772182,1757531439851,-480.0,0.00013794,2]
[384772183,1757531439860,-480.0,0.00013794,2]
[384772184,1757531439869,-325.71620052,0.00013794,2]
[384772185,1757531439879,-480.0,0.00013794,2]
[384772186,1757531439888,-447.79559518,0.00013794,2]
[384772187,1757531439898,-480.0,0.00013794,2]
[384772188,1757531439907,-620.24,0.00013794,2]
[384772189,1757531439916,-480.0,0.00013794,2]
[384772190,1757531439926,-398.47174216,0.00013794,2]
[384772191,1757531439935,-480.0,0.00013794,2]
[384772192,1757531439945,-500.0,0.00013794,2]
[384772193,1757531439955,-504.50079068,0.00013794,2]
[384772194,1757531439964,-500.0,0.00013794,2]
[384772195,1757531439973,-500.0,0.00013794,2]
[384772196,1757531439982,-500.0,0.00013794,2]
[384772197,1757531439991,-480.0,0.00013794,2]
[384772198,1757531440001,-480.0,0.00013794,2]
[384772199,1757531440010,-485.68,0.00013794,2]
[384772200,1757531440019,-480.0,0.00013794,2]
[384772201,1757531440029,-481.2462477,0.00013794,2]
[384772202,1757531440038,-597.38691436,0.00013794,2]
[384772203,1757531440047,-480.0,0.00013794,2]
[384772204,1757531440056,-480.0,0.00013794,2]
[384772205,1757531440066,-198.15,0.00013794,2]
[384772206,1757531440075,-480.0,0.00013794,2]
[384772207,1757531440084,-480.0,0.00013794,2]
[384772208,1757531440094,-480.0,0.00013794,2]
[384772209,1757531440103,-480.0,0.00013794,2]
[384772210,1757531440113,-287.30007009,0.00013794,2]
[384772211,1757531440122,-481.56565846,0.00013794,2]
[384772212,1757531440131,-480.0,0.00013794,2]
[384772213,1757531440141,-480.0,0.00013794,2]
[384772214,1757531440150,-480.0,0.00013794,2]
[384772215,1757531440159,-480.0,0.00013794,2]
[384772216,1757531440170,-480.0,0.00013794,2]
[384772217,1757531440179,-460.27,0.00013794,2]